[Event "Titled Tuesday Blitz January 10 Early 2023"]
[White "Clawitter, Craig"]
[Black "Tworuszka, Michal"]
[WhiteFideId "2023105"]
[BlackFideId "1117858"]
[WhiteElo "2050"]
[BlackElo "2260"]
[Result "0-1"]
[Round "04"]
[TimeControl "180+2"]
[Date "2023.01.10"]
[WhiteClock "0:00:08"]
[BlackClock "0:00:04"]

1. e4 {[%clk 0:03:00]}  c5 {[%clk 0:02:59]} 2. Nf3 {[%clk 0:02:51]}  d6 {[%clk 0:02:58]} 3. d4 {[%clk 0:02:37]}  cxd4 {[%clk 0:02:59]} 4. Nxd4 {[%clk 0:02:37]}  Nf6 {[%clk 0:02:53]} 5. Nc3 {[%clk 0:02:38]}  a6 {[%clk 0:02:53]} 6. Be3 {[%clk 0:02:38]}  e5 {[%clk 0:02:51]} 7. Nb3 {[%clk 0:02:31]}  Be6 {[%clk 0:02:51]} 8. f3 {[%clk 0:02:32]}  Be7 {[%clk 0:02:52]} 9. Qd2 {[%clk 0:02:32]}  O-O {[%clk 0:02:52]} 10. g4 {[%clk 0:02:32]}  Nbd7 {[%clk 0:02:52]} 11. O-O-O {[%clk 0:02:32]}  b5 {[%clk 0:02:52]} 12. Rg1 {[%clk 0:02:33]}  b4 {[%clk 0:02:51]} 13. Nd5 {[%clk 0:02:32]}  Bxd5 {[%clk 0:02:51]} 14. exd5 {[%clk 0:02:33]}  a5 {[%clk 0:02:51]} 15. Kb1 {[%clk 0:02:32]}  Nb6 {[%clk 0:02:44]} 16. Bxb6 {[%clk 0:02:19]}  Qxb6 {[%clk 0:02:45]} 17. Bd3 {[%clk 0:02:15]}  a4 {[%clk 0:02:41]} 18. Nc1 {[%clk 0:02:14]}  a3 {[%clk 0:02:06]} 19. g5 {[%clk 0:02:05]}  Nd7 {[%clk 0:01:54]} 20. h4 {[%clk 0:01:54]}  axb2 {[%clk 0:01:39]} 21. Kxb2 {[%clk 0:01:53]}  Nc5 {[%clk 0:01:40]} 22. h5 {[%clk 0:01:49]}  Na4+ {[%clk 0:01:36]} 23. Kb1 {[%clk 0:01:31]}  Nc3+ {[%clk 0:00:45]} 24. Ka1 {[%clk 0:01:30]}  Qa5 {[%clk 0:00:40]} 25. Bc4 {[%clk 0:01:07]}  Ra7 {[%clk 0:00:10]} 26. g6 {[%clk 0:00:59]}  Rfa8 {[%clk 0:00:08]} 27. gxf7+ {[%clk 0:00:46]}  Kf8 {[%clk 0:00:06]} 28. Qxc3 {[%clk 0:00:16]}  bxc3 {[%clk 0:00:07]} 29. h6 {[%clk 0:00:14]}  Qb4 {[%clk 0:00:03]} 30. Bb3 {[%clk 0:00:12]}  Qa3 {[%clk 0:00:02]} 31. hxg7+ {[%clk 0:00:10]}  Kxf7 {[%clk 0:00:02]} 32. Nd3 {[%clk 0:00:08]}  Qxa2+ {[%clk 0:00:02]} 33. Bxa2 {[%clk 0:00:07]}  Rxa2+ {[%clk 0:00:03]} 34. Kb1 {[%clk 0:00:08]}  Ra1# {[%clk 0:00:04]} 0-1


[Site "https://www.chess.com"]

[Event "Titled Tuesday Blitz January 10 Early 2023"]
[White "Johnson, Ben"]
[Black "Bove, Alessandro"]
[WhiteFideId "2010917"]
[BlackFideId "814121"]
[WhiteElo "1961"]
[BlackElo "2311"]
[Result "1-0"]
[Round "04"]
[TimeControl "180+2"]
[Date "2023.01.10"]
[WhiteClock "0:00:16"]
[BlackClock "0:00:55"]

1. Nf3 {[%clk 0:03:00]}  g6 {[%clk 0:02:59]} 2. e4 {[%clk 0:02:59]}  Bg7 {[%clk 0:02:59]} 3. d4 {[%clk 0:03:00]}  c5 {[%clk 0:02:59]} 4. c4 {[%clk 0:02:59]}  cxd4 {[%clk 0:02:55]} 5. Nxd4 {[%clk 0:02:59]}  Nc6 {[%clk 0:02:56]} 6. Be3 {[%clk 0:02:58]}  d6 {[%clk 0:02:55]} 7. Nc3 {[%clk 0:02:56]}  Bd7 {[%clk 0:02:56]} 8. Be2 {[%clk 0:02:56]}  Nf6 {[%clk 0:02:56]} 9. O-O {[%clk 0:02:55]}  Nxd4 {[%clk 0:02:56]} 10. Bxd4 {[%clk 0:02:54]}  O-O {[%clk 0:02:57]} 11. h3 {[%clk 0:02:51]}  a6 {[%clk 0:02:57]} 12. Rc1 {[%clk 0:02:49]}  Bc6 {[%clk 0:02:57]} 13. Qd3 {[%clk 0:02:35]}  Qd7 {[%clk 0:02:52]} 14. Nd5 {[%clk 0:02:26]}  Bxd5 {[%clk 0:02:48]} 15. exd5 {[%clk 0:02:17]}  Ne8 {[%clk 0:02:37]} 16. Rfe1 {[%clk 0:02:11]}  e5 {[%clk 0:02:31]} 17. dxe6 {[%clk 0:02:06]}  fxe6 {[%clk 0:02:32]} 18. Bg4 {[%clk 0:02:02]}  Nc7 {[%clk 0:02:20]} 19. Bxg7 {[%clk 0:01:36]}  Kxg7 {[%clk 0:02:17]} 20. c5 {[%clk 0:01:34]}  d5 {[%clk 0:02:10]} 21. c6 {[%clk 0:01:29]}  bxc6 {[%clk 0:02:05]} 22. Qc3+ {[%clk 0:01:29]}  Rf6 {[%clk 0:01:54]} 23. Qxc6 {[%clk 0:01:23]}  Qxc6 {[%clk 0:01:51]} 24. Rxc6 {[%clk 0:01:24]}  Nb5 {[%clk 0:01:47]} 25. Rexe6 {[%clk 0:01:15]}  Rxe6 {[%clk 0:01:45]} 26. Rxe6 {[%clk 0:01:13]}  h5 {[%clk 0:01:37]} 27. Bd1 {[%clk 0:01:01]}  Rc8 {[%clk 0:01:17]} 28. Kh2 {[%clk 0:00:53]}  a5 {[%clk 0:01:12]} 29. Rb6 {[%clk 0:00:46]}  Rc5 {[%clk 0:01:11]} 30. Ba4 {[%clk 0:00:41]}  Nd4 {[%clk 0:01:08]} 31. Rd6 {[%clk 0:00:34]}  Nf5 {[%clk 0:01:07]} 32. Rc6 {[%clk 0:00:29]}  Rxc6 {[%clk 0:01:04]} 33. Bxc6 {[%clk 0:00:30]}  d4 {[%clk 0:01:04]} 34. Kg1 {[%clk 0:00:28]}  Kf6 {[%clk 0:01:04]} 35. Kf1 {[%clk 0:00:28]}  Ke5 {[%clk 0:01:04]} 36. Ke1 {[%clk 0:00:28]}  Nh4 {[%clk 0:01:04]} 37. Kd2 {[%clk 0:00:27]}  Kd6 {[%clk 0:01:01]} 38. Be4 {[%clk 0:00:22]}  Ke5 {[%clk 0:01:01]} 39. Kd3 {[%clk 0:00:21]}  g5 {[%clk 0:01:00]} 40. b3 {[%clk 0:00:19]}  g4 {[%clk 0:00:59]} 41. a3 {[%clk 0:00:17]}  gxh3 {[%clk 0:00:58]} 42. gxh3 {[%clk 0:00:18]}  Kf4 {[%clk 0:00:54]} 43. b4 {[%clk 0:00:17]}  axb4 {[%clk 0:00:54]} 44. axb4 {[%clk 0:00:18]}  Nf3 {[%clk 0:00:52]} 45. Bxf3 {[%clk 0:00:18]}  Kxf3 {[%clk 0:00:53]} 46. b5 {[%clk 0:00:17]}  Kxf2 {[%clk 0:00:54]} 47. b6 {[%clk 0:00:18]}  Kg3 {[%clk 0:00:54]} 48. b7 {[%clk 0:00:18]}  Kxh3 {[%clk 0:00:55]} 49. b8=Q {[%clk 0:00:19]}  h4 {[%clk 0:00:55]} 50. Qf4 {[%clk 0:00:17]}  Kg2 {[%clk 0:00:53]} 51. Qxh4 {[%clk 0:00:17]}  Kg1 {[%clk 0:00:54]} 52. Qxd4+ {[%clk 0:00:16]}  Kg2 {[%clk 0:00:55]} 53. Qe3 {[%clk 0:00:16]} 1-0


[Site "https://www.chess.com"]

[Event "Titled Tuesday Blitz January 10 Early 2023"]
[White "Zaichenko, Daria"]
[Black "Kiseleva, Arina"]
[WhiteFideId "4197453"]
[BlackFideId "4164989"]
[WhiteElo "2104"]
[BlackElo "1962"]
[Result "1-0"]
[Round "04"]
[TimeControl "180+2"]
[Date "2023.01.10"]
[WhiteClock "0:00:24"]
[BlackClock "0:00:01"]

1. e4 {[%clk 0:02:56]}  c6 {[%clk 0:02:59]} 2. d4 {[%clk 0:02:54]}  d5 {[%clk 0:02:59]} 3. Nc3 {[%clk 0:02:54]}  dxe4 {[%clk 0:02:58]} 4. Nxe4 {[%clk 0:02:55]}  Nf6 {[%clk 0:02:59]} 5. Nxf6+ {[%clk 0:02:54]}  exf6 {[%clk 0:03:00]} 6. c3 {[%clk 0:02:54]}  Bd6 {[%clk 0:02:57]} 7. Bd3 {[%clk 0:02:54]}  Na6 {[%clk 0:02:58]} 8. Be3 {[%clk 0:02:54]}  Nc7 {[%clk 0:02:55]} 9. Qc2 {[%clk 0:02:50]}  h5 {[%clk 0:02:53]} 10. O-O-O {[%clk 0:02:49]}  Nd5 {[%clk 0:02:39]} 11. Ne2 {[%clk 0:02:41]}  Kf8 {[%clk 0:02:36]} 12. Kb1 {[%clk 0:02:39]}  b5 {[%clk 0:02:31]} 13. Be4 {[%clk 0:02:36]}  Be6 {[%clk 0:02:28]} 14. Bc1 {[%clk 0:02:28]}  a5 {[%clk 0:02:24]} 15. f4 {[%clk 0:02:28]}  g6 {[%clk 0:02:05]} 16. f5 {[%clk 0:02:20]}  gxf5 {[%clk 0:02:02]} 17. Bxf5 {[%clk 0:02:20]}  a4 {[%clk 0:01:48]} 18. Rhf1 {[%clk 0:02:17]}  a3 {[%clk 0:01:44]} 19. b3 {[%clk 0:02:17]}  Ra7 {[%clk 0:01:34]} 20. Rf3 {[%clk 0:01:57]}  h4 {[%clk 0:01:09]} 21. Bxe6 {[%clk 0:01:54]}  fxe6 {[%clk 0:01:08]} 22. c4 {[%clk 0:01:37]}  bxc4 {[%clk 0:01:04]} 23. bxc4 {[%clk 0:01:38]}  Rb7+ {[%clk 0:00:50]} 24. Ka1 {[%clk 0:01:37]}  Nb4 {[%clk 0:00:36]} 25. Qg6 {[%clk 0:01:34]}  Be7 {[%clk 0:00:22]} 26. Nf4 {[%clk 0:01:14]}  Qd6 {[%clk 0:00:08]} 27. c5 {[%clk 0:00:38]}  Qd7 {[%clk 0:00:06]} 28. Bxa3 {[%clk 0:00:37]}  Bxc5 {[%clk 0:00:04]} 29. Nxe6+ {[%clk 0:00:27]}  Qxe6 {[%clk 0:00:03]} 30. Rxf6+ {[%clk 0:00:27]}  Qxf6 {[%clk 0:00:02]} 31. Qxf6+ {[%clk 0:00:27]}  Kg8 {[%clk 0:00:01]} 32. Bxb4 {[%clk 0:00:25]}  Bxb4 {[%clk 0:00:01]} 33. Qg6+ {[%clk 0:00:24]} 1-0


[Site "https://www.chess.com"]

[Event "Titled Tuesday Blitz January 10 Early 2023"]
[White "Martinez, Shawn"]
[Black "Necula, Iulian"]
[WhiteFideId "2039770"]
[BlackFideId "1232380"]
[WhiteElo "1881"]
[BlackElo "1851"]
[Result "1-0"]
[Round "04"]
[TimeControl "180+2"]
[Date "2023.01.10"]
[WhiteClock "0:01:43"]
[BlackClock "0:01:07"]

1. e4 {[%clk 0:03:00]}  c5 {[%clk 0:02:59]} 2. Nc3 {[%clk 0:03:00]}  d6 {[%clk 0:02:58]} 3. Bb5+ {[%clk 0:03:00]}  Bd7 {[%clk 0:02:58]} 4. a4 {[%clk 0:03:00]}  a6 {[%clk 0:02:57]} 5. Bc4 {[%clk 0:03:00]}  Nf6 {[%clk 0:02:55]} 6. f4 {[%clk 0:03:00]}  Nc6 {[%clk 0:02:52]} 7. d3 {[%clk 0:03:00]}  g6 {[%clk 0:02:51]} 8. Nf3 {[%clk 0:03:00]}  Bg7 {[%clk 0:02:51]} 9. O-O {[%clk 0:03:00]}  O-O {[%clk 0:02:51]} 10. h3 {[%clk 0:02:54]}  e6 {[%clk 0:02:51]} 11. e5 {[%clk 0:02:45]}  dxe5 {[%clk 0:02:43]} 12. fxe5 {[%clk 0:02:44]}  Nd5 {[%clk 0:02:29]} 13. Qe1 {[%clk 0:02:34]}  Nb6 {[%clk 0:01:44]} 14. Bg5 {[%clk 0:02:25]}  Qc7 {[%clk 0:01:40]} 15. Bf6 {[%clk 0:02:23]}  Nxc4 {[%clk 0:01:38]} 16. dxc4 {[%clk 0:02:22]}  Nd4 {[%clk 0:01:36]} 17. Qh4 {[%clk 0:02:16]}  Nxf3+ {[%clk 0:01:33]} 18. Rxf3 {[%clk 0:02:15]}  Bc6 {[%clk 0:01:28]} 19. Rf4 {[%clk 0:01:59]}  h6 {[%clk 0:01:21]} 20. Bxg7 {[%clk 0:01:52]}  Kxg7 {[%clk 0:01:21]} 21. Qf6+ {[%clk 0:01:52]}  Kh7 {[%clk 0:01:21]} 22. Raf1 {[%clk 0:01:49]}  Kg8 {[%clk 0:01:10]} 23. Rh4 {[%clk 0:01:44]}  Kh7 {[%clk 0:01:09]} 24. Rff4 {[%clk 0:01:43]}  Rae8 {[%clk 0:01:07]} 25. Rxh6+ {[%clk 0:01:43]} 1-0


[Site "https://www.chess.com"]

[Event "Titled Tuesday Blitz January 10 Early 2023"]
[White "Durarbayli, Vasif"]
[Black "Andreikin, Dmitry"]
[WhiteFideId "13402935"]
[BlackFideId "4158814"]
[WhiteElo "2627"]
[BlackElo "2729"]
[Result "1/2-1/2"]
[Round "05"]
[TimeControl "180+2"]
[Date "2023.01.10"]
[WhiteClock "0:00:04"]
[BlackClock "0:00:06"]

1. e4 {[%clk 0:03:00]}  e6 {[%clk 0:03:00]} 2. d4 {[%clk 0:03:00]}  d5 {[%clk 0:03:01]} 3. e5 {[%clk 0:03:01]}  c5 {[%clk 0:03:00]} 4. c3 {[%clk 0:03:01]}  Bd7 {[%clk 0:03:01]} 5. Nf3 {[%clk 0:03:01]}  Qb6 {[%clk 0:03:01]} 6. Bd3 {[%clk 0:02:55]}  Bb5 {[%clk 0:03:00]} 7. dxc5 {[%clk 0:02:50]}  Bxc5 {[%clk 0:02:59]} 8. b4 {[%clk 0:02:48]}  Bxd3 {[%clk 0:02:54]} 9. Qxd3 {[%clk 0:02:49]}  Be7 {[%clk 0:02:52]} 10. Be3 {[%clk 0:02:46]}  Qa6 {[%clk 0:02:45]} 11. Qxa6 {[%clk 0:02:41]}  Nxa6 {[%clk 0:02:45]} 12. Ke2 {[%clk 0:02:18]}  Nh6 {[%clk 0:02:43]} 13. Bxh6 {[%clk 0:02:12]}  gxh6 {[%clk 0:02:44]} 14. Nbd2 {[%clk 0:02:08]}  Kd7 {[%clk 0:02:34]} 15. a3 {[%clk 0:01:55]}  Rhc8 {[%clk 0:02:32]} 16. Kd3 {[%clk 0:01:55]}  Nb8 {[%clk 0:02:28]} 17. c4 {[%clk 0:01:48]}  dxc4+ {[%clk 0:02:25]} 18. Nxc4 {[%clk 0:01:49]}  Ke8 {[%clk 0:02:24]} 19. Rhc1 {[%clk 0:01:43]}  Nd7 {[%clk 0:02:22]} 20. Nd4 {[%clk 0:01:19]}  a6 {[%clk 0:02:13]} 21. f4 {[%clk 0:01:18]}  Rd8 {[%clk 0:02:10]} 22. Ke4 {[%clk 0:01:09]}  Rdb8 {[%clk 0:01:33]} 23. f5 {[%clk 0:00:53]}  exf5+ {[%clk 0:01:26]} 24. Nxf5 {[%clk 0:00:53]}  Kf8 {[%clk 0:01:25]} 25. Ncd6 {[%clk 0:00:43]}  Bxd6 {[%clk 0:01:06]} 26. Nxd6 {[%clk 0:00:44]}  Ke7 {[%clk 0:01:07]} 27. Rc7 {[%clk 0:00:29]}  Ke6 {[%clk 0:01:01]} 28. Nf5 {[%clk 0:00:19]}  Rg8 {[%clk 0:00:49]} 29. Kf4 {[%clk 0:00:08]}  Rxg2 {[%clk 0:00:41]} 30. Nd4+ {[%clk 0:00:07]}  Ke7 {[%clk 0:00:40]} 31. Rd1 {[%clk 0:00:05]}  Ke8 {[%clk 0:00:28]} 32. e6 {[%clk 0:00:04]}  fxe6 {[%clk 0:00:24]} 33. Nxe6 {[%clk 0:00:05]}  Nf8 {[%clk 0:00:18]} 34. Ng7+ {[%clk 0:00:04]}  Rxg7 {[%clk 0:00:16]} 35. Re1+ {[%clk 0:00:04]}  Ne6+ {[%clk 0:00:13]} 36. Rxe6+ {[%clk 0:00:05]}  Kf8 {[%clk 0:00:14]} 37. Rxg7 {[%clk 0:00:05]}  Kxg7 {[%clk 0:00:15]} 38. Re7+ {[%clk 0:00:06]}  Kg6 {[%clk 0:00:09]} 39. Rxb7 {[%clk 0:00:07]}  Rf8+ {[%clk 0:00:07]} 40. Kg3 {[%clk 0:00:05]}  Rf6 {[%clk 0:00:07]} 41. a4 {[%clk 0:00:06]}  Rc6 {[%clk 0:00:07]} 42. a5 {[%clk 0:00:06]}  Rc4 {[%clk 0:00:07]} 43. Kf3 {[%clk 0:00:03]}  h5 {[%clk 0:00:06]} 44. Ke3 {[%clk 0:00:03]}  Rh4 {[%clk 0:00:05]} 45. Kd3 {[%clk 0:00:01]}  Kg5 {[%clk 0:00:05]} 46. Rb6 {[%clk 0:00:01]}  Rh3+ {[%clk 0:00:02]} 47. Kc4 {[%clk 0:00:02]}  Rxh2 {[%clk 0:00:03]} 48. Kc5 {[%clk 0:00:03]}  h4 {[%clk 0:00:03]} 49. Rxa6 {[%clk 0:00:03]}  h3 {[%clk 0:00:04]} 50. Ra7 {[%clk 0:00:02]}  h5 {[%clk 0:00:03]} 51. Rg7+ {[%clk 0:00:03]}  Kf4 {[%clk 0:00:04]} 52. Rg1 {[%clk 0:00:04]}  Rg2 {[%clk 0:00:04]} 53. Rh1 {[%clk 0:00:04]}  h2 {[%clk 0:00:05]} 54. a6 {[%clk 0:00:05]}  Kg3 {[%clk 0:00:05]} 55. b5 {[%clk 0:00:05]}  Rg1 {[%clk 0:00:05]} 56. Rxh2 {[%clk 0:00:05]}  Kxh2 {[%clk 0:00:06]} 57. a7 {[%clk 0:00:05]}  Ra1 {[%clk 0:00:05]} 58. b6 {[%clk 0:00:06]}  Kg2 {[%clk 0:00:05]} 59. b7 {[%clk 0:00:05]}  Rxa7 {[%clk 0:00:05]} 60. b8=Q {[%clk 0:00:06]}  Ra5+ {[%clk 0:00:05]} 61. Kd4 {[%clk 0:00:07]}  Ra4+ {[%clk 0:00:05]} 62. Ke3 {[%clk 0:00:07]}  Rg4 {[%clk 0:00:05]} 63. Qb2+ {[%clk 0:00:07]}  Kh3 {[%clk 0:00:04]} 64. Kf3 {[%clk 0:00:07]}  Rg3+ {[%clk 0:00:04]} 65. Kf4 {[%clk 0:00:08]}  Rg4+ {[%clk 0:00:05]} 66. Kf5 {[%clk 0:00:08]}  h4 {[%clk 0:00:05]} 67. Qc1 {[%clk 0:00:04]}  Rg2 {[%clk 0:00:04]} 68. Qh1+ {[%clk 0:00:04]}  Kg3 {[%clk 0:00:05]} 69. Qe1+ {[%clk 0:00:03]}  Rf2+ {[%clk 0:00:04]} 70. Ke4 {[%clk 0:00:04]}  Kg2 {[%clk 0:00:05]} 71. Qd1 {[%clk 0:00:01]}  h3 {[%clk 0:00:03]} 72. Qg4+ {[%clk 0:00:02]}  Kh2 {[%clk 0:00:03]} 73. Ke3 {[%clk 0:00:03]}  Rg2 {[%clk 0:00:04]} 74. Qd1 {[%clk 0:00:03]}  Rg3+ {[%clk 0:00:03]} 75. Kf4 {[%clk 0:00:03]}  Rg1 {[%clk 0:00:04]} 76. Qe2+ {[%clk 0:00:02]}  Rg2 {[%clk 0:00:03]} 77. Qe1 {[%clk 0:00:03]}  Rg1 {[%clk 0:00:04]} 78. Qe2+ {[%clk 0:00:03]}  Rg2 {[%clk 0:00:04]} 79. Qe1 {[%clk 0:00:04]}  Rg1 {[%clk 0:00:05]} 80. Qe5 {[%clk 0:00:04]}  Kg2 {[%clk 0:00:04]} 81. Qe2+ {[%clk 0:00:04]}  Kh1 {[%clk 0:00:04]} 82. Kf3 {[%clk 0:00:04]}  Rg8 {[%clk 0:00:03]} 83. Qe1+ {[%clk 0:00:04]}  Kh2 {[%clk 0:00:03]} 84. Qe2+ {[%clk 0:00:05]}  Rg2 {[%clk 0:00:04]} 85. Qd1 {[%clk 0:00:04]}  Rg1 {[%clk 0:00:04]} 86. Qd2+ {[%clk 0:00:04]}  Rg2 {[%clk 0:00:04]} 87. Qf4+ {[%clk 0:00:05]}  Kh1 {[%clk 0:00:04]} 88. Qc1+ {[%clk 0:00:06]}  Kh2 {[%clk 0:00:05]} 89. Qe1 {[%clk 0:00:06]}  Rg1 {[%clk 0:00:04]} 90. Qe5+ {[%clk 0:00:06]}  Kh1 {[%clk 0:00:04]} 91. Qe4 {[%clk 0:00:06]}  Kh2 {[%clk 0:00:04]} 92. Qe5+ {[%clk 0:00:04]}  Kh1 {[%clk 0:00:04]} 93. Qd5 {[%clk 0:00:05]}  Kh2 {[%clk 0:00:04]} 94. Qd6+ {[%clk 0:00:05]}  Kh1 {[%clk 0:00:05]} 95. Qd2 {[%clk 0:00:06]}  Rg2 {[%clk 0:00:04]} 96. Qd7 {[%clk 0:00:04]}  Kh2 {[%clk 0:00:04]} 97. Qc8 {[%clk 0:00:04]}  Rg3+ {[%clk 0:00:04]} 98. Kf2 {[%clk 0:00:03]}  Rg2+ {[%clk 0:00:05]} 99. Kf3 {[%clk 0:00:04]}  Rg3+ {[%clk 0:00:06]} 100. Kf4 {[%clk 0:00:05]}  Rg2 {[%clk 0:00:06]} 101. Qc1 {[%clk 0:00:04]}  Rg1 {[%clk 0:00:06]} 102. Qd2+ {[%clk 0:00:03]}  Rg2 {[%clk 0:00:06]} 103. Qe1 {[%clk 0:00:04]} 1/2-1/2


[Site "https://www.chess.com"]

[Event "Titled Tuesday Blitz January 10 Early 2023"]
[White "Vidit, Santosh Gujrathi"]
[Black "Harshavardhan G B"]
[WhiteFideId "5029465"]
[BlackFideId "25059009"]
[WhiteElo "2731"]
[BlackElo "2408"]
[Result "1/2-1/2"]
[Round "05"]
[TimeControl "180+2"]
[Date "2023.01.10"]
[WhiteClock "0:00:08"]
[BlackClock "0:00:15"]

1. e4 {[%clk 0:03:00]}  e5 {[%clk 0:02:58]} 2. Nf3 {[%clk 0:03:00]}  Nc6 {[%clk 0:02:55]} 3. Bb5 {[%clk 0:03:00]}  a6 {[%clk 0:02:55]} 4. Ba4 {[%clk 0:03:00]}  Nf6 {[%clk 0:02:54]} 5. d3 {[%clk 0:02:59]}  d6 {[%clk 0:02:53]} 6. c3 {[%clk 0:02:56]}  g6 {[%clk 0:02:53]} 7. O-O {[%clk 0:02:56]}  Bg7 {[%clk 0:02:52]} 8. Re1 {[%clk 0:02:56]}  O-O {[%clk 0:02:52]} 9. Nbd2 {[%clk 0:02:54]}  Bd7 {[%clk 0:02:52]} 10. Nf1 {[%clk 0:02:50]}  Nh5 {[%clk 0:02:51]} 11. Bg5 {[%clk 0:02:42]}  Qe8 {[%clk 0:02:49]} 12. Bb3 {[%clk 0:02:33]}  h6 {[%clk 0:02:47]} 13. Bh4 {[%clk 0:02:31]}  Kh7 {[%clk 0:02:47]} 14. h3 {[%clk 0:02:19]}  Nd8 {[%clk 0:02:35]} 15. d4 {[%clk 0:02:19]}  Ne6 {[%clk 0:02:34]} 16. Ne3 {[%clk 0:02:12]}  Nef4 {[%clk 0:02:17]} 17. Rc1 {[%clk 0:01:23]}  Be6 {[%clk 0:01:52]} 18. Kh2 {[%clk 0:01:15]}  b5 {[%clk 0:01:24]} 19. Bxe6 {[%clk 0:01:06]}  Qxe6 {[%clk 0:01:23]} 20. b3 {[%clk 0:01:01]}  c5 {[%clk 0:01:18]} 21. dxc5 {[%clk 0:00:57]}  dxc5 {[%clk 0:01:16]} 22. c4 {[%clk 0:00:57]}  Bf6 {[%clk 0:01:08]} 23. Bxf6 {[%clk 0:00:47]}  Nxf6 {[%clk 0:01:02]} 24. Nd5 {[%clk 0:00:45]}  Rad8 {[%clk 0:01:01]} 25. Qd2 {[%clk 0:00:41]}  g5 {[%clk 0:00:59]} 26. Ng1 {[%clk 0:00:34]}  b4 {[%clk 0:00:48]} 27. g3 {[%clk 0:00:33]}  Ng6 {[%clk 0:00:48]} 28. a3 {[%clk 0:00:30]}  bxa3 {[%clk 0:00:40]} 29. Qa5 {[%clk 0:00:27]}  Nd7 {[%clk 0:00:34]} 30. Qxa3 {[%clk 0:00:26]}  f5 {[%clk 0:00:33]} 31. exf5 {[%clk 0:00:25]}  Rxf5 {[%clk 0:00:31]} 32. f3 {[%clk 0:00:20]}  e4 {[%clk 0:00:27]} 33. Rxe4 {[%clk 0:00:19]}  Nde5 {[%clk 0:00:26]} 34. Rce1 {[%clk 0:00:19]}  Qf7 {[%clk 0:00:24]} 35. Qxc5 {[%clk 0:00:18]}  Nd3 {[%clk 0:00:18]} 36. Qb6 {[%clk 0:00:16]}  Nxe1 {[%clk 0:00:17]} 37. Qxd8 {[%clk 0:00:16]}  Nxf3+ {[%clk 0:00:17]} 38. Nxf3 {[%clk 0:00:14]}  Rxf3 {[%clk 0:00:18]} 39. Re2 {[%clk 0:00:06]}  Rf2+ {[%clk 0:00:18]} 40. Rxf2 {[%clk 0:00:06]}  Qxf2+ {[%clk 0:00:18]} 41. Kh1 {[%clk 0:00:07]}  Qf1+ {[%clk 0:00:19]} 42. Kh2 {[%clk 0:00:07]}  Qf2+ {[%clk 0:00:18]} 43. Kh1 {[%clk 0:00:08]}  Qf3+ {[%clk 0:00:15]} 44. Kh2 {[%clk 0:00:08]}  Qf2+ {[%clk 0:00:15]} 1/2-1/2


[Site "https://www.chess.com"]

[Event "Titled Tuesday Blitz January 10 Early 2023"]
[White "Sadhwani, Raunak"]
[Black "Indjic, Aleksandar"]
[WhiteFideId "35093487"]
[BlackFideId "911925"]
[WhiteElo "2627"]
[BlackElo "2618"]
[Result "1-0"]
[Round "05"]
[TimeControl "180+2"]
[Date "2023.01.10"]
[WhiteClock "0:00:11"]
[BlackClock "0:00:03"]

1. c4 {[%clk 0:03:00]}  g6 {[%clk 0:02:57]} 2. Nc3 {[%clk 0:03:00]}  Bg7 {[%clk 0:02:58]} 3. d4 {[%clk 0:03:01]}  c5 {[%clk 0:02:58]} 4. d5 {[%clk 0:03:00]}  Bxc3+ {[%clk 0:02:58]} 5. bxc3 {[%clk 0:03:01]}  f5 {[%clk 0:02:57]} 6. h4 {[%clk 0:03:02]}  Nf6 {[%clk 0:02:56]} 7. h5 {[%clk 0:03:02]}  gxh5 {[%clk 0:02:30]} 8. e4 {[%clk 0:02:55]}  Qa5 {[%clk 0:02:26]} 9. exf5 {[%clk 0:02:38]}  d6 {[%clk 0:02:23]} 10. Qb3 {[%clk 0:02:32]}  Bxf5 {[%clk 0:02:20]} 11. Nf3 {[%clk 0:02:17]}  Nbd7 {[%clk 0:02:18]} 12. Ng5 {[%clk 0:02:15]}  O-O-O {[%clk 0:02:15]} 13. Nf7 {[%clk 0:02:15]}  Rhg8 {[%clk 0:01:38]} 14. Nxd8 {[%clk 0:02:14]}  Kxd8 {[%clk 0:01:39]} 15. Bd2 {[%clk 0:02:05]}  Nb6 {[%clk 0:01:35]} 16. a4 {[%clk 0:02:02]}  Bd7 {[%clk 0:01:19]} 17. f3 {[%clk 0:01:55]}  Kc7 {[%clk 0:01:17]} 18. Kf2 {[%clk 0:01:51]}  Bxa4 {[%clk 0:01:14]} 19. Qa3 {[%clk 0:01:43]}  Qa6 {[%clk 0:01:11]} 20. Rh4 {[%clk 0:01:41]}  Rg7 {[%clk 0:00:49]} 21. Be2 {[%clk 0:01:17]}  Nfxd5 {[%clk 0:00:47]} 22. cxd5 {[%clk 0:01:14]}  Rxg2+ {[%clk 0:00:46]} 23. Kxg2 {[%clk 0:01:15]}  Qxe2+ {[%clk 0:00:45]} 24. Kg3 {[%clk 0:01:13]}  Qxd2 {[%clk 0:00:42]} 25. Rxa4 {[%clk 0:01:11]}  Qg5+ {[%clk 0:00:39]} 26. Kh3 {[%clk 0:01:10]}  Qf5+ {[%clk 0:00:38]} 27. Kg2 {[%clk 0:01:10]}  Nxd5 {[%clk 0:00:30]} 28. Re4 {[%clk 0:01:01]}  Qg5+ {[%clk 0:00:14]} 29. Kf2 {[%clk 0:01:01]}  Nf4 {[%clk 0:00:14]} 30. Qa5+ {[%clk 0:00:57]}  Kc8 {[%clk 0:00:14]} 31. Qa4 {[%clk 0:00:27]}  Qg2+ {[%clk 0:00:13]} 32. Ke3 {[%clk 0:00:22]}  Nd5+ {[%clk 0:00:13]} 33. Kd3 {[%clk 0:00:21]}  Qxf3+ {[%clk 0:00:13]} 34. Kc2 {[%clk 0:00:13]}  b5 {[%clk 0:00:08]} 35. Qa6+ {[%clk 0:00:12]}  Kd8 {[%clk 0:00:08]} 36. Qa5+ {[%clk 0:00:12]}  Kc8 {[%clk 0:00:09]} 37. Rae1 {[%clk 0:00:12]}  b4 {[%clk 0:00:07]} 38. Qa6+ {[%clk 0:00:12]}  Kb8 {[%clk 0:00:07]} 39. Qd3 {[%clk 0:00:11]}  b3+ {[%clk 0:00:06]} 40. Kd2 {[%clk 0:00:12]}  Qf7 {[%clk 0:00:06]} 41. Qb5+ {[%clk 0:00:11]}  Kc8 {[%clk 0:00:05]} 42. Qxb3 {[%clk 0:00:11]}  Qf2+ {[%clk 0:00:04]} 43. Kc1 {[%clk 0:00:11]}  Nb6 {[%clk 0:00:02]} 44. Rxe7 {[%clk 0:00:10]}  c4 {[%clk 0:00:03]} 45. Qb5 {[%clk 0:00:11]}  Qf4+ {[%clk 0:00:03]} 46. Kb1 {[%clk 0:00:11]}  Qf5+ {[%clk 0:00:03]} 47. Qxf5+ {[%clk 0:00:11]} 1-0


[Site "https://www.chess.com"]